bitfinex-derivatives/quotes_BTCF0:USTF0_20251108
["timestamp","ask_amount","ask_price","bid_price","bid_amount"]
[1762626239746,0.85580011,101990.0,101980.0,0.1030823]
[1762626240044,0.85580011,101990.0,101980.0,0.005]
[1762626240846,0.85580011,101990.0,101980.0,0.1030902]
[1762626241739,0.85580011,101990.0,101980.0,0.005]
[1762626243248,0.85580011,101990.0,101980.0,0.1030902]
[1762626244045,0.87352592,101990.0,101980.0,0.1030902]
[1762626247454,0.87352592,101990.0,101980.0,0.005]
[1762626248353,0.87352592,101990.0,101980.0,0.1030902]
[1762626251853,0.87352592,101990.0,101980.0,0.005]
[1762626252163,0.87352592,101990.0,101980.0,0.1030903]
[1762626254347,0.87352592,101990.0,101980.0,0.005]
[1762626254957,0.87352592,101990.0,101980.0,0.1030902]
[1762626257056,0.80291677,101990.0,101980.0,0.1030902]
[1762626257258,0.87352592,101990.0,101980.0,0.1030902]
[1762626258554,0.87352592,101990.0,101980.0,0.005]
[1762626259453,0.87352592,101990.0,101980.0,0.1030902]
[1762626259660,0.87371462,101990.0,101980.0,0.1030902]
[1762626262958,0.87371462,101990.0,101970.0,0.2163985]
[1762626262959,0.1571002,101980.0,101970.0,0.09836082]
[1762626263154,0.82862518,101980.0,101970.0,0.09836392]
[1762626263357,0.97504313,101980.0,101970.0,0.09836392]
[1762626263953,0.99271235,101980.0,101970.0,0.00026412]
[1762626264166,0.99271235,101980.0,101970.0,0.09836392]
[1762626264755,0.99271235,101980.0,101970.0,0.00326412]
[1762626264956,0.99271235,101980.0,101970.0,0.00626412]
[1762626265563,0.99771235,101980.0,101970.0,0.00126412]
[1762626265764,1.00371235,101980.0,101970.0,0.00226412]
[1762626266462,0.0980998,101970.0,101960.0,0.0981023]
[1762626266670,0.72779282,101970.0,101960.0,0.1426523]
[1762626266966,0.8752336,101970.0,101960.0,0.1426523]
[1762626267170,0.80462445,101970.0,101960.0,0.1426523]
[1762626267363,0.85754822,101970.0,101960.0,0.1426523]
[1762626267568,0.85765716,101970.0,101960.0,0.1426523]
[1762626268269,0.86165716,101970.0,101960.0,0.1426523]
[1762626268761,0.86765716,101970.0,101960.0,0.1436523]
[1762626269370,0.86765716,101970.0,101960.0,0.1222123]
[1762626269768,0.88534254,101970.0,101960.0,0.0991023]
[1762626270269,0.88534254,101970.0,101960.0,0.001]
[1762626271374,0.1566495,101960.0,101950.0,0.14280952]
[1762626271566,0.7100921,101960.0,101950.0,0.14280952]
[1762626272563,0.7190921,101960.0,101950.0,0.14380952]
[1762626274958,0.7190921,101960.0,101950.0,0.09925952]
[1762626276577,0.7190921,101960.0,101950.0,0.12236952]
[1762626276772,0.7190921,101960.0,101950.0,0.14380952]
[1762626276975,0.60105092,101960.0,101950.0,0.09925952]
[1762626277173,0.7190921,101960.0,101950.0,0.14380952]
[1762626277367,0.7190921,101960.0,101950.0,0.12236952]
[1762626277564,0.7190921,101960.0,101950.0,0.02425702]
[1762626277879,0.75433328,101960.0,101950.0,0.00114702]
[1762626278081,0.98343886,101960.0,101950.0,0.00114702]
[1762626278577,0.86539768,101960.0,101950.0,0.00114702]
[1762626278881,0.86539768,101960.0,101950.0,0.09926612]
[1762626283275,0.86539768,101960.0,101950.0,0.09926702]
[1762626285374,0.98343886,101960.0,101950.0,0.09926702]
[1762626289284,0.93054013,101960.0,101950.0,0.09926702]
[1762626289481,0.98339191,101960.0,101950.0,0.00114702]
[1762626289781,0.98339191,101960.0,101950.0,0.09926632]
[1762626290372,0.86549338,101960.0,101950.0,0.09926632]
[1762626291285,0.86549338,101960.0,101950.0,0.00114702]
[1762626291584,0.8126416,101960.0,101950.0,0.00114702]
[1762626296985,0.8126416,101960.0,101950.0,0.09926572]
[1762626297289,0.8126416,101960.0,101950.0,0.12200572]
[1762626297481,0.1112086,101950.0,101940.0,0.0981282]
[1762626297783,0.1543182,101940.0,101930.0,0.1418741]
[1762626297983,0.26419387,101940.0,101930.0,0.1418741]
[1762626298389,0.22892468,101940.0,101930.0,0.1418741]
[1762626299379,0.22992468,101940.0,101930.0,0.1428741]
[1762626299888,0.10307369,101940.0,101930.0,0.1563941]
[1762626300890,0.10607369,101940.0,101930.0,0.1563941]
[1762626302086,0.12370648,101940.0,101930.0,0.1563941]
[1762626302889,0.13679648,101940.0,101930.0,0.1563941]
[1762626303491,0.15897387,101940.0,101930.0,0.63537793]
[1762626303680,0.15897456,101940.0,101930.0,0.63537793]
[1762626305790,0.27019276,101940.0,101930.0,0.5171978]
[1762626306093,0.27019276,101940.0,101930.0,0.1563978]
[1762626306592,0.27019276,101940.0,101930.0,0.1428778]
[1762626307785,0.27019276,101940.0,101930.0,0.1563978]
[1762626308481,0.23492468,101940.0,101930.0,0.1563978]
[1762626309994,0.10202648,101940.0,101930.0,0.27458163]
[1762626310194,0.12370648,101940.0,101930.0,0.63538163]
[1762626310492,0.15898251,101940.0,101930.0,0.63538163]
[1762626313797,0.15898251,101940.0,101930.0,0.27458163]
[1762626313988,0.15898251,101940.0,101930.0,0.63538163]
[1762626318000,0.07080269,101940.0,101930.0,0.63538163]
[1762626318398,0.02770269,101940.0,101930.0,0.88062163]
[1762626318794,0.04912269,101940.0,101930.0,0.88062163]
[1762626319093,0.0491,101940.0,101930.0,0.67068212]
[1762626319892,0.0491,101940.0,101930.0,0.81898212]
[1762626320491,0.0491,101940.0,101930.0,0.70079829]
[1762626320698,0.06219,101940.0,101930.0,0.81898212]
[1762626320892,0.06219,101940.0,101930.0,0.78368163]
[1762626321599,0.0491,101940.0,101930.0,0.78368163]
[1762626325700,0.0491,101940.0,101930.0,0.63538163]
[1762626327607,0.0491,101940.0,101930.0,0.67068212]
[1762626327906,0.02742,101940.0,101930.0,0.67068212]
[1762626328306,0.02742,101940.0,101930.0,0.66184471]
[1762626328896,0.06402,101940.0,101930.0,0.5171978]
[1762626329203,0.06402,101940.0,101930.0,0.66184619]
[1762626329802,0.06402,101940.0,101930.0,0.54366236]
[1762626330709,0.1621484,101940.0,101930.0,0.53014236]
[1762626332810,0.06402,101940.0,101930.0,0.53014236]
[1762626333612,0.1621484,101940.0,101930.0,0.53014236]
[1762626334512,0.19742443,101940.0,101930.0,0.1428778]
[1762626337908,0.09929603,101940.0,101930.0,0.1428778]
[1762626338214,0.09929603,101940.0,101930.0,0.1559278]
[1762626339804,0.19742423,101940.0,101930.0,0.1559278]
[1762626340712,0.09929603,101940.0,101930.0,0.1559278]
[1762626341108,0.19742423,101940.0,101930.0,0.04474]
[1762626341313,0.82296437,101940.0,101930.0,0.02362]
[1762626341513,0.70478054,101940.0,101930.0,0.04493]
[1762626342111,0.70178054,101940.0,101930.0,0.04493]
[1762626342312,0.70478054,101940.0,101930.0,0.04493]
[1762626342511,0.82196437,101940.0,101930.0,0.04393]
[1762626346619,0.82196437,101940.0,101930.0,0.1420678]
[1762626346823,0.1583378,101930.0,101920.0,0.00014702]
[1762626347020,0.67262454,101930.0,101920.0,0.00014702]
[1762626347319,0.82070643,101930.0,101920.0,0.00014702]
[1762626348406,0.82170643,101930.0,101920.0,0.00014702]
[1762626349119,0.82270643,101930.0,101920.0,0.00014702]
[1762626350004,0.82170643,101930.0,101920.0,0.00014702]
[1762626350209,0.82370643,101930.0,101920.0,0.00014702]
[1762626351012,0.82570643,101930.0,101920.0,0.00014702]
[1762626352321,0.82578958,101930.0,101920.0,0.00014702]
[1762626352721,0.82578958,101930.0,101920.0,0.09829452]
[1762626352914,0.82578958,101930.0,101920.0,0.00014702]
[1762626354225,0.82578958,101930.0,101920.0,0.09829442]
[1762626354418,0.82578958,101930.0,101920.0,0.00014702]
[1762626357334,0.94405656,101930.0,101920.0,0.00014702]
[1762626357534,0.1566575,101920.0,101910.0,9.892e-05]
[1762626357741,0.78918558,101920.0,101910.0,0.02164892]
[1762626357938,0.93563165,101920.0,101910.0,0.04348892]
[1762626358140,0.81736467,101920.0,101910.0,0.04348892]
[1762626358734,0.81936467,101920.0,101910.0,0.14164612]
[1762626359343,0.93763165,101920.0,101910.0,9.892e-05]
[1762626359645,0.95534132,101920.0,101910.0,9.892e-05]
[1762626359845,0.93763314,101920.0,101910.0,9.892e-05]
[1762626360045,0.95534132,101920.0,101910.0,9.892e-05]
[1762626360841,0.95734132,101920.0,101910.0,9.892e-05]
[1762626361244,0.95934132,101920.0,101910.0,9.892e-05]
[1762626362546,0.96034132,101920.0,101910.0,0.00109892]
[1762626363040,0.1566672,101910.0,101900.0,9.804e-05]
[1762626363248,0.67091055,101910.0,101900.0,9.804e-05]
[1762626363449,0.81880228,101910.0,101900.0,9.804e-05]
[1762626364248,0.95691488,101910.0,101900.0,9.804e-05]
[1762626364455,0.27495338,101890.0,101880.0,0.04339]
[1762626364645,0.63585512,101890.0,101880.0,0.04339]
[1762626364842,0.63585512,101890.0,101880.0,0.141576]
[1762626365549,0.79365242,101890.0,101880.0,0.1415761]
[1762626365746,0.79465242,101890.0,101880.0,0.1415761]
[1762626365937,0.78577487,101890.0,101880.0,0.1415761]
[1762626366136,0.66750789,101890.0,101880.0,0.1550161]
[1762626366943,0.78577487,101890.0,101880.0,0.1415761]
[1762626367837,0.56933149,101890.0,101880.0,0.1415761]
[1762626368037,0.56933149,101890.0,101880.0,0.1550161]
[1762626368242,0.19568149,101890.0,101880.0,0.63408308]
[1762626368443,0.29385789,101890.0,101880.0,0.63408308]
[1762626369151,0.29385789,101890.0,101880.0,0.27328308]
[1762626373254,0.30670789,101890.0,101880.0,0.27328308]
[1762626374161,0.30670789,101890.0,101880.0,0.1550161]
[1762626374362,0.30670789,101890.0,101880.0,0.27328308]
[1762626375260,0.42497487,101890.0,101880.0,0.1415761]
[1762626375762,0.42497487,101890.0,101880.0,0.141576]
[1762626375973,0.78577487,101890.0,101880.0,0.141576]
[1762626377756,0.78677487,101890.0,101880.0,0.142576]
[1762626377956,0.78777487,101890.0,101880.0,0.142576]
[1762626380161,0.66950789,101890.0,101880.0,0.142576]
[1762626380670,0.66950789,101890.0,101880.0,0.26084298]
[1762626381063,0.78777487,101890.0,101880.0,0.142576]
[1762626381563,0.66950789,101890.0,101880.0,0.26084298]
[1762626381969,0.78777487,101890.0,101880.0,0.26084298]
[1762626384269,0.82293801,101890.0,101880.0,0.26084298]
[1762626384770,0.82293801,101890.0,101880.0,0.142576]
[1762626390765,0.70467103,101890.0,101880.0,0.142576]
[1762626391374,0.82293801,101890.0,101880.0,0.26084298]
[1762626392670,0.70467103,101890.0,101880.0,0.26084298]
[1762626392866,0.34387103,101890.0,101880.0,0.26084298]
[1762626393175,0.70467103,101890.0,101880.0,0.26084298]
[1762626394187,0.75757482,101890.0,101880.0,0.26084298]
[1762626394976,0.39677482,101890.0,101880.0,0.26084298]
[1762626395178,0.75757482,101890.0,101880.0,0.26084298]
[1762626395667,0.34387103,101890.0,101880.0,0.26084298]
[1762626396573,0.24569463,101890.0,101880.0,0.26084298]
[1762626396772,0.23284463,101890.0,101880.0,0.27427298]
[1762626397174,0.24633463,101890.0,101880.0,0.27427298]
[1762626397368,0.24633463,101890.0,101880.0,0.142576]
[1762626397568,0.24633463,101890.0,101880.0,0.26084298]
[1762626398575,0.34451103,101890.0,101880.0,0.26084298]
[1762626399180,0.23284463,101890.0,101880.0,0.77976013]
[1762626399373,0.19768149,101890.0,101880.0,0.75333996]
[1762626400279,0.19768149,101890.0,101880.0,0.77984734]
[1762626402286,0.21051463,101890.0,101880.0,0.77984734]
[1762626402577,0.00410174,101890.0,101880.0,0.77984734]
[1762626402970,0.02536174,101890.0,101880.0,0.77984734]
[1762626403173,0.04846174,101890.0,101880.0,0.77984734]
[1762626404970,0.19573298,101890.0,101880.0,0.16908508]
[1762626405171,0.19573298,101890.0,101880.0,0.26084468]
[1762626405372,0.09755488,101890.0,101880.0,0.28735206]
[1762626405573,0.09755488,101890.0,101880.0,0.62164468]
[1762626405875,0.09755488,101890.0,101880.0,0.64815206]
[1762626406077,0.09755488,101890.0,101880.0,0.26084468]
[1762626406281,0.08362488,101890.0,101880.0,0.75306166]
[1762626406581,0.08362488,101890.0,101880.0,0.63479468]
[1762626406987,0.08362488,101890.0,101880.0,0.75306166]
[1762626410180,0.08362488,101890.0,101880.0,0.39226166]
[1762626410386,0.08362488,101890.0,101880.0,0.75306166]
[1762626411087,0.09755488,101890.0,101880.0,0.27399468]
[1762626413084,0.08362488,101890.0,101880.0,0.27399468]
[1762626414283,0.08362488,101890.0,101880.0,0.1557277]
[1762626414484,0.08362488,101890.0,101880.0,0.27402764]
[1762626415984,0.04846174,101890.0,101880.0,0.66133502]
[1762626416183,0.00410174,101890.0,101880.0,0.66133502]
[1762626416877,0.02606174,101890.0,101880.0,0.66133502]
[1762626418591,0.04867174,101890.0,101880.0,0.66133502]
[1762626419590,0.14684864,101890.0,101880.0,0.66133502]
[1762626419791,0.08383488,101890.0,101880.0,0.66133502]
[1762626421992,0.18201178,101890.0,101880.0,0.66133502]
[1762626422177,0.18201178,101890.0,101880.0,0.27402764]
[1762626423088,0.18201178,101890.0,101880.0,0.1557277]
[1762626423394,0.18201178,101890.0,101880.0,0.27402764]
[1762626424191,0.18201178,101890.0,101880.0,0.30053502]
[1762626424388,0.08383488,101890.0,101880.0,0.30053502]
[1762626429892,0.06122488,101890.0,101880.0,0.30125502]
[1762626430093,0.08383488,101890.0,101880.0,0.30125502]
[1762626430296,0.08383488,101890.0,101880.0,0.66205502]
[1762626430593,0.04867174,101890.0,101880.0,0.66205502]
[1762626434798,0.08383488,101890.0,101880.0,0.66205502]
[1762626441901,0.03926488,101890.0,101880.0,0.82734579]
[1762626442200,0.00410174,101890.0,101880.0,0.8361389]
[1762626445697,0.02606174,101890.0,101880.0,0.8361389]
[1762626445997,0.02606174,101890.0,101880.0,0.71783896]
[1762626446197,0.04844174,101890.0,101880.0,0.71783896]
[1762626446401,0.04844174,101890.0,101880.0,0.68253847]
[1762626447206,0.04844174,101890.0,101880.0,0.70902649]
[1762626447406,0.04844174,101890.0,101880.0,0.71783896]
[1762626449201,0.06110174,101890.0,101880.0,0.54373372]
[1762626451305,0.06110174,101890.0,101880.0,0.66203366]
[1762626451505,0.15927884,101890.0,101880.0,0.66203366]
[1762626454409,0.06110174,101890.0,101880.0,0.66203366]
[1762626455508,0.15927884,101890.0,101880.0,0.66203366]
[1762626458314,0.14661884,101890.0,101880.0,0.66203366]
[1762626459308,0.04844174,101890.0,101880.0,0.66203366]
[1762626460605,0.00410174,101890.0,101880.0,0.69733415]
[1762626463907,0.04945174,101890.0,101880.0,0.69733415]
[1762626465110,0.04945174,101890.0,101880.0,0.66203366]
[1762626466213,0.04945174,101890.0,101880.0,0.69733415]
[1762626469610,0.00410174,101890.0,101880.0,0.69733415]
[1762626470110,0.00014702,101900.0,101890.0,0.0575]
[1762626470311,0.00014702,101900.0,101890.0,0.66127065]
[1762626471108,0.0002613,101900.0,101890.0,0.66127065]
[1762626471310,0.0032613,101900.0,101890.0,0.66127065]
[1762626472314,0.0062613,101900.0,101890.0,0.66227065]
[1762626474320,0.1044288,101900.0,101890.0,0.78046555]
[1762626474519,0.0062613,101900.0,101890.0,0.78046555]
[1762626474721,0.0062613,101900.0,101890.0,0.86092898]
[1762626475527,1.3e-06,101900.0,101890.0,0.89622947]
[1762626476419,1.3e-06,101900.0,101890.0,0.86973586]
[1762626481115,1.3e-06,101900.0,101890.0,1.41957586]
[1762626483123,1.3e-06,101900.0,101890.0,1.44603956]
[1762626483322,1.3e-06,101900.0,101890.0,1.69139956]
[1762626483628,1.3e-06,101900.0,101890.0,1.66493586]
[1762626484321,1.3e-06,101900.0,101890.0,1.41957586]
[1762626484625,1.3e-06,101900.0,101890.0,1.66493586]
[1762626485219,1.3e-06,101900.0,101890.0,1.41957586]
[1762626485524,1.3e-06,101900.0,101890.0,1.66493586]
[1762626486219,1.3e-06,101900.0,101890.0,1.41957586]
[1762626486420,1.3e-06,101900.0,101890.0,1.66493586]
[1762626486829,1.3e-06,101900.0,101890.0,1.81323586]
[1762626488622,1.3e-06,101900.0,101890.0,1.56787586]
[1762626488821,1.3e-06,101900.0,101890.0,1.92867586]
[1762626489629,1.3e-06,101900.0,101890.0,2.17403586]
[1762626490031,1.3e-06,101900.0,101890.0,2.2005012]
[1762626490523,1.3e-06,101900.0,101890.0,1.9551412]
[1762626491029,1.3e-06,101900.0,101890.0,2.17403586]
[1762626491432,1.3e-06,101900.0,101890.0,1.92867586]
[1762626491832,0.00014702,101910.0,101900.0,0.1506373]
[1762626492133,0.04494,101930.0,101920.0,0.1564281]
[1762626492325,0.0228,101930.0,101920.0,0.7801763]
[1762626493128,0.04494,101930.0,101920.0,0.7801763]
[1762626493532,0.04594,101930.0,101920.0,0.7801763]
[1762626494134,0.0238,101930.0,101920.0,0.7801763]
[1762626494332,0.0238,101930.0,101920.0,0.54368146]
[1762626494533,0.04594,101930.0,101920.0,0.7801763]
[1762626495235,0.04594,101930.0,101920.0,0.7821763]
[1762626496140,0.04594,101930.0,101920.0,0.75572294]
[1762626496538,0.04594,101930.0,101920.0,0.7821763]
[1762626497528,0.001,101930.0,101920.0,0.75572294]
[1762626497733,0.001,101930.0,101920.0,1.1429763]
[1762626499831,0.00014702,101940.0,101930.0,0.05578]
[1762626500037,0.00014702,101940.0,101930.0,0.75121334]
[1762626500627,0.04494,101960.0,101950.0,0.1563992]
[1762626500941,0.04494,101970.0,101960.0,0.1563896]
[1762626501136,0.04494,101970.0,101960.0,0.75368444]
[1762626502036,0.05773,101970.0,101960.0,0.75368444]
[1762626502540,0.05873,101970.0,101960.0,0.75368444]
[1762626502739,0.05973,101970.0,101960.0,0.75468444]
[1762626503144,0.15683,101970.0,101960.0,0.65657484]
[1762626503339,0.15683,101970.0,101960.0,0.75668444]
[1762626504041,0.05873,101970.0,101960.0,0.75668444]
[1762626508443,0.15683,101970.0,101960.0,0.75668444]
[1762626508741,0.05873,101970.0,101960.0,0.75668444]
[1762626510034,0.05873,101970.0,101960.0,0.39588444]
[1762626510234,0.05873,101970.0,101960.0,0.75668444]
[1762626511649,0.001,101970.0,101960.0,1.23573186]
[1762626511845,0.00014702,101980.0,101970.0,0.15148]
[1762626512150,0.00014702,101980.0,101970.0,0.74877484]
[1762626514138,0.00114702,101980.0,101970.0,0.74877484]
[1762626515349,0.00014702,101980.0,101970.0,0.74877484]
[1762626515648,0.00014702,101980.0,101970.0,0.75077484]
[1762626516049,0.00014702,101980.0,101970.0,0.75177484]
[1762626516249,0.00014702,101980.0,101970.0,0.90007484]
[1762626516854,0.02247702,101980.0,101970.0,0.66358]
[1762626517147,0.00014702,101980.0,101970.0,0.90007484]
[1762626517744,0.00014702,101980.0,101970.0,0.75177484]
[1762626517944,0.04449,102010.0,102000.0,0.1545412]
[1762626518137,0.41923,102020.0,102010.0,0.1416416]
[1762626518342,0.05843,102020.0,102010.0,0.25988902]
[1762626518557,0.20553281,102020.0,102010.0,0.25988902]
[1762626519454,0.20953281,102020.0,102010.0,0.26088902]
[1762626520953,0.30758481,102020.0,102010.0,0.26088902]
[1762626521152,0.30758481,102020.0,102010.0,0.16282742]
[1762626521354,0.30758481,102020.0,102010.0,0.26088902]
[1762626521552,0.31158481,102020.0,102010.0,0.26188902]
[1762626521955,0.21353281,102020.0,102010.0,0.26188902]
[1762626522154,0.31158481,102020.0,102010.0,0.26188902]
[1762626522355,0.30358481,102020.0,102010.0,0.25988902]
[1762626523057,0.30558481,102020.0,102010.0,0.25988902]
[1762626524154,0.20953281,102020.0,102010.0,0.25988902]
[1762626524858,0.30758481,102020.0,102010.0,0.25988902]
[1762626525055,0.20953281,102020.0,102010.0,0.25988902]
[1762626525359,0.30758481,102020.0,102010.0,0.25988902]
[1762626525549,0.20953281,102020.0,102010.0,0.25988902]
[1762626526261,0.30758481,102020.0,102010.0,0.25988902]
[1762626527453,0.20953281,102020.0,102010.0,0.25988902]
[1762626527860,0.30758481,102020.0,102010.0,0.25988902]
[1762626529362,0.1538116,102010.0,102000.0,0.00014702]
[1762626529557,0.63285902,102010.0,102000.0,0.09821822]
[1762626529760,0.77905782,102010.0,102000.0,0.11945822]
[1762626530053,0.77905782,102010.0,102000.0,0.09821822]
[1762626530947,0.2019488,102010.0,102000.0,0.25893564]
[1762626531152,0.2029488,102010.0,102000.0,0.25893564]
[1762626531653,0.3010104,102010.0,102000.0,0.25893564]
[1762626532055,0.6628104,102010.0,102000.0,0.25893564]
[1762626532261,0.6648104,102010.0,102000.0,0.25893564]
[1762626533962,0.3040104,102010.0,102000.0,0.25893564]
[1762626534161,0.6648104,102010.0,102000.0,0.25893564]
[1762626534463,0.3040104,102010.0,102000.0,0.25893564]
[1762626534670,0.6648104,102010.0,102000.0,0.25893564]
[1762626535265,0.3040104,102010.0,102000.0,0.25893564]
[1762626535467,0.69997354,102010.0,102000.0,0.25893564]
[1762626535667,0.33917354,102010.0,102000.0,0.25893564]
[1762626535866,0.69997354,102010.0,102000.0,0.25893564]
[1762626536565,0.75287733,102010.0,102000.0,0.11945822]
[1762626537169,0.71771419,102010.0,102000.0,0.11945822]
[1762626537372,0.71771419,102010.0,102000.0,0.14269822]
[1762626539766,0.35691419,102010.0,102000.0,0.14269822]
[1762626539970,0.71771419,102010.0,102000.0,0.14269822]
[1762626541159,0.75297096,102010.0,102000.0,0.11945822]
[1762626541364,0.75297096,102010.0,102000.0,0.09821822]
[1762626541365,0.71771419,102010.0,102000.0,0.09821822]
[1762626541564,0.71771419,102010.0,102000.0,0.00014702]
[1762626541768,0.1560113,102000.0,101990.0,0.0980774]
[1762626542072,0.35601432,102000.0,101990.0,0.0980774]
[1762626542272,0.71681432,102000.0,101990.0,0.1211174]
[1762626542568,0.25794302,102000.0,101990.0,0.26240809]
[1762626542872,0.20505113,102000.0,101990.0,0.63588809]
[1762626543073,0.19184113,102000.0,101990.0,0.63588809]
[1762626543776,0.19284113,102000.0,101990.0,0.63588809]
[1762626544376,0.22809218,102000.0,101990.0,0.63588809]
[1762626544763,0.19284113,102000.0,101990.0,0.63588809]
[1762626545568,0.19284113,102000.0,101990.0,0.66229115]
[1762626545776,0.02268,102000.0,101990.0,0.66229115]
[1762626546178,0.001,102000.0,101990.0,0.66229115]
[1762626546673,0.04573,102000.0,101990.0,0.66229115]
[1762626546873,0.001,102000.0,101990.0,0.66229115]
[1762626547076,0.02268,102000.0,101990.0,0.66229115]
[1762626547966,0.001,102000.0,101990.0,0.66229115]
[1762626550683,0.001,102000.0,101990.0,0.69757667]
[1762626551692,0.001,102000.0,101990.0,0.67117361]
[1762626555996,0.001,102000.0,101990.0,1.03197361]
[1762626556291,0.02268,102000.0,101990.0,1.03197361]
[1762626556490,0.04573,102000.0,101990.0,1.05836296]
[1762626556795,0.05894,102000.0,101990.0,1.05836296]
[1762626556995,0.04573,102000.0,101990.0,1.05836296]
[1762626557193,0.02305,102000.0,101990.0,1.05836296]
[1762626557388,0.03209451,102000.0,101990.0,1.05836296]
[1762626558089,0.04487702,102010.0,102000.0,0.1570309]
[1762626558290,0.04487702,102010.0,102000.0,0.63588159]
[1762626559287,0.00214702,102010.0,102000.0,0.75393228]
[1762626559593,0.02582702,102010.0,102000.0,0.63588159]
[1762626560396,0.04887702,102010.0,102000.0,0.63588159]
[1762626561095,0.00414702,102010.0,102000.0,0.63588159]
[1762626561698,0.02582702,102010.0,102000.0,0.63588159]
[1762626563294,0.02582702,102010.0,102000.0,0.66226281]
[1762626564793,0.00414702,102010.0,102000.0,0.66226281]
[1762626564993,0.00414702,102010.0,102000.0,0.7803135]
[1762626566391,0.00414702,102010.0,102000.0,0.82653539]
[1762626566704,0.00414702,102010.0,102000.0,0.83543969]
[1762626567101,0.00414702,102010.0,102000.0,0.7892178]
[1762626570611,0.00414702,102010.0,102000.0,0.8155919]
[1762626571705,0.04863702,102010.0,102000.0,0.8155919]
[1762626571906,0.02582702,102010.0,102000.0,0.78030638]
[1762626572206,0.02582702,102010.0,102000.0,0.8155919]
[1762626573614,0.04863702,102010.0,102000.0,0.89349772]
[1762626573812,0.00414702,102010.0,102000.0,0.77544703]
[1762626574015,0.00414702,102010.0,102000.0,0.89349772]
[1762626575212,0.02725702,102010.0,102000.0,0.89349772]
[1762626577015,0.08117105,102030.0,102020.0,0.1548117]
[1762626577310,0.04592,102030.0,102020.0,0.63366239]
[1762626577515,0.44894294,102040.0,102020.0,0.73171409]
[1762626577723,0.49486294,102040.0,102030.0,0.27285279]
[1762626577918,0.6428324,102040.0,102030.0,0.27285279]
[1762626578320,0.58994051,102040.0,102030.0,0.27285279]
[1762626578521,0.22914051,102040.0,102030.0,0.27285279]
[1762626579017,0.23914051,102040.0,102030.0,0.27485279]
[1762626579207,0.2920324,102040.0,102030.0,0.27485279]
[1762626579521,0.23914051,102040.0,102030.0,0.27485279]
[1762626581513,0.04792,102040.0,102030.0,0.63365279]
[1762626581713,0.05092,102040.0,102030.0,0.63365279]
[1762626588023,0.09901105,102040.0,102030.0,0.1411121]
[1762626588218,0.06376,102040.0,102030.0,0.5019121]
[1762626588419,0.06376,102040.0,102030.0,0.5158321]
[1762626589124,0.05092,102040.0,102030.0,0.63388279]
[1762626590325,0.02811,102040.0,102030.0,0.63388279]
[1762626590526,0.0505,102040.0,102030.0,0.63388279]
[1762626591632,0.0505,102040.0,102030.0,0.27308279]
[1762626593530,0.0505,102040.0,102030.0,0.63388279]
[1762626594634,0.08575105,102040.0,102030.0,0.63388279]
[1762626595836,0.04025105,102040.0,102030.0,0.75193348]
[1762626596036,0.005,102040.0,102030.0,0.75193348]
[1762626597537,0.005,102040.0,102030.0,0.77827833]
[1762626598340,0.005,102040.0,102030.0,0.77803973]
[1762626600141,0.00014702,102050.0,102040.0,0.1559225]
[1762626600341,0.00014702,102050.0,102040.0,0.89686152]
[1762626602143,0.00014702,102050.0,102040.0,0.89786152]
[1762626602937,0.00014702,102050.0,102040.0,0.78093013]
[1762626603342,0.00014702,102050.0,102040.0,0.78193013]
[1762626603938,0.00014702,102050.0,102040.0,0.89986152]
[1762626605444,0.00014702,102050.0,102040.0,0.78193013]
[1762626605847,0.00014702,102050.0,102040.0,0.85996219]
[1762626606943,0.02332702,102050.0,102040.0,0.85996219]
[1762626607543,0.44894294,102070.0,102060.0,0.0980134]
[1762626607746,0.44894294,102070.0,102060.0,0.38548618]
[1762626607747,0.40613,102070.0,102060.0,0.38548618]
[1762626608045,0.58863709,102070.0,102060.0,0.38548618]
[1762626608346,0.19258604,102070.0,102060.0,0.74628618]
[1762626609047,0.04533,102070.0,102060.0,0.74628618]
[1762626610343,0.08072807,102080.0,102070.0,0.1558938]
[1762626610538,0.08072807,102080.0,102070.0,0.27382519]
[1762626610749,0.22737143,102080.0,102070.0,0.27382519]
[1762626611637,0.22937143,102080.0,102070.0,0.27382519]
[1762626611837,0.19412038,102080.0,102070.0,0.27382519]
[1762626612354,0.19612038,102080.0,102070.0,0.27382519]
[1762626615051,0.19612038,102080.0,102070.0,0.39175658]
[1762626615957,0.19612038,102080.0,102070.0,0.75255658]
[1762626616457,0.04947702,102080.0,102070.0,0.75255658]
[1762626623843,0.00414702,102080.0,102070.0,0.75255658]
[1762626626258,0.00414702,102080.0,102070.0,0.77890143]
[1762626626858,0.00414702,102080.0,102070.0,0.75255658]
[1762626627054,0.00414702,102080.0,102070.0,0.77890143]
[1762626633253,0.00414702,102080.0,102070.0,0.89683282]
[1762626633448,0.01275,102100.0,102090.0,0.22929239]
[1762626633657,0.05758,102100.0,102090.0,0.69464378]
[1762626634461,0.06058,102100.0,102090.0,0.69464378]
[1762626635153,0.05958,102100.0,102090.0,0.69464378]
[1762626635861,0.06258,102100.0,102090.0,0.69464378]
[1762626636163,0.005,102100.0,102090.0,1.05544378]
[1762626636461,0.002,102100.0,102090.0,1.08178863]
[1762626636657,0.002,102100.0,102090.0,1.08378863]
[1762626637067,0.002,102100.0,102090.0,1.05744378]
[1762626637256,0.05767804,102110.0,102090.0,1.06044378]
[1762626637457,0.41847804,102110.0,102100.0,0.29816596]
[1762626638566,0.41847804,102110.0,102100.0,0.29916596]
[1762626639462,0.05767804,102110.0,102100.0,0.29916596]
[1762626639965,0.05767804,102110.0,102100.0,0.30116596]
[1762626640867,0.03547804,102110.0,102100.0,0.30116596]
[1762626641967,0.05767804,102110.0,102100.0,0.30116596]
[1762626642374,0.05767804,102110.0,102100.0,0.66196596]
[1762626642871,0.01284804,102110.0,102100.0,0.68831081]
[1762626643054,0.03547804,102110.0,102100.0,0.68831081]
[1762626643459,0.05767804,102110.0,102100.0,0.32751081]
[1762626643968,0.05767804,102110.0,102100.0,0.68831081]
[1762626644265,0.05767804,102110.0,102100.0,0.66196596]
[1762626644870,0.01284804,102110.0,102100.0,0.66196596]
[1762626645068,0.03487804,102110.0,102100.0,0.66196596]
[1762626645465,0.05941804,102110.0,102100.0,0.77989735]
[1762626646472,0.01392804,102110.0,102100.0,0.77989735]
[1762626646970,0.03595804,102110.0,102100.0,0.77989735]
[1762626647572,0.01392804,102110.0,102100.0,0.77989735]
[1762626648075,0.03595804,102110.0,102100.0,0.69763788]
[1762626648874,0.03595804,102110.0,102100.0,0.81556927]
[1762626649070,0.03595804,102110.0,102100.0,1.36432927]
[1762626649269,0.01392804,102110.0,102100.0,1.36432927]
[1762626650778,0.05922,102120.0,102110.0,0.0979669]
[1762626650965,0.05922,102120.0,102110.0,0.69462968]
[1762626652072,0.06022,102120.0,102110.0,0.69462968]
[1762626652671,0.01473,102120.0,102110.0,0.69462968]
[1762626652874,0.06022,102120.0,102110.0,0.69462968]
[1762626653475,0.06022,102120.0,102110.0,0.33382968]
[1762626654068,0.06022,102120.0,102110.0,0.48212968]
[1762626657681,0.06022,102120.0,102110.0,1.03084968]